Cogmind - Beta 14 @@@ ROGUE MODE // 2025.05.04 @ 18:07:34 Player: Player Result: Destroyed by D-53 Grenadier with Mini Grenade Launcher Performance ------------- Evolutions (0) 0 Regions Visited (2) 400 Robots Destroyed (26) 130 Value Destroyed (410) 410 Prototype IDs (2) 40 Alien Tech Used (0) 0 Bonus (0) 0 TOTAL SCORE: 980 Bonus ------- None Cogmind --------- Core Integrity 0/250 Matter 142/300 Energy 92/100 System Corruption 1% Temperature Cool (0) Movement Core (750) Ox14 Location -10/Mines Parts ------- > --- POWER (1) -------- (None) > --- PROPULSION (2) --- (None) > --- UTILITY (2) ------ High-capacity Storage Unit Signal Interpreter > --- WEAPON (2) ------- Assault Rifle Mini Grenade Launcher > --- INVENTORY (20) --- Light Ion Engine Compact Wheel Large Matter Pod (0) Machine Analyzer Visual Processing Unit Signal Interpreter Improved Terrain Scanner Tractor Beam Sensor Drone Bay Spread Laser Spread Laser Light Assault Rifle Light Assault Rifle Shotgun Shotgun Shotgun Mini Grenade Launcher Mining Laser Hammer Peak State ------------ > --- POWER ------------ Light Nuclear Core > --- PROPULSION ------- Light Treads Light Treads > --- UTILITY ---------- High-capacity Storage Unit Seismic Detector > --- WEAPON ----------- Assault Rifle Shotgun > --- INVENTORY -------- Compact Wheel Large Matter Pod Machine Analyzer Visual Processing Unit Signal Interpreter Signal Interpreter Improved Terrain Scanner Tractor Beam Spread Laser Spread Laser Light Assault Rifle Light Assault Rifle Light Assault Rifle Light Assault Rifle Shotgun Shotgun Mini Grenade Launcher Mini Grenade Launcher Mining Laser Hammer [Rating: 13] Favorites ----------- Power Light Nuclear Core Engine Light Ion Engine Power Core Light Nuclear Core Propulsion Light Treads Treads Light Treads Utility Seismic Detector Device Seismic Detector Storage Small Storage Unit Processor Signal Interpreter Weapon Assault Rifle Ballistic Gun Assault Rifle Launcher Mini Grenade Launcher Special Weapon Mining Laser Impact Weapon Hammer Build | -11 -10 -10 ------- Run | Yrd Mat Min Slots Evolved . | . . . Power . | . . . Propulsion . | . . . Utility . | . . . Weapon . | . . . Parts Attached 26 | 7 15 4 Power 4 | 1 3 . Engine 3 | 1 2 . Core 1 | . 1 . Reactor . | . . . Propulsion 4 | 2 2 . Treads 4 | 2 2 . Leg . | . . . Wheel . | . . . Hover . | . . . Flight . | . . . Utility 6 | 2 3 1 Device 3 | 1 2 . Storage 2 | 1 1 . Processor 1 | . . 1 Hackware . | . . . Protection . | . . . Artifact . | . . . Weapon 12 | 2 7 3 Energy Gun . | . . . Energy Cannon . | . . . Ballistic Gun 7 | 2 5 . Ballistic Cannon . | . . . Launcher 1 | . . 1 Special Weapon 1 | . 1 . Impact Weapon 3 | . 1 2 Slashing Weapon . | . . . Piercing Weapon . | . . . Special Melee Weapon . | . . . Unidentified Prototypes . | . . . Parts Lost 4 | . 1 3 Power 1 | . . 1 Propulsion 3 | . 1 2 Utility . | . . . Weapon . | . . . Highest Loss Streak 3 | . 1 3 To Critical Strikes . | . . . Average Slot Usage (%) 97 | . 97 99 Engine 6 | . 7 . Core 7 | . 6 13 Treads 26 | . 25 28 Device 11 | . 14 2 Storage 14 | . 14 14 Processor 2 | . . 11 Ballistic Gun 24 | . 25 19 Impact Weapon 3 | . 2 8 Peak Build Rating 13 | 7 13 13 Average Rating 9 | 6 9 12 On Entrance 6 | . 7 13 Naked Turns . | . . . Heaviest Build 51 | 13 51 51 Greatest Support 40 | 40 40 40 Greatest Overweight (x) 2 | . 2 1 Average Overweight (x) . | . . 1 Largest Inventory Capacity 20 | 8 20 20 Average Capacity 12 | 7 11 20 Most Carried 20 | 5 20 20 Average Carried 10 | 2 10 19 Final Capacity 20 | 8 20 20 Final Carried 20 | 5 20 19 Class Distribution -------------------- 100% | Mutant Dominant Class ---------------- Mutant | -10/Materials Mutant | -10/Mines Resources | -11 -10 -10 ----------- Run | Yrd Mat Min Matter Collected 759 | 378 339 42 Remotely . | . . . Salvage Created 668 | 171 455 42 Parts 50 | 13 33 4 Haulers Intercepted . | . . . Recyclers Shooed 2 | 1 . 1 Parts Field Recycled . | . . . Retrieved Matter . | . . . Parts Self-Destructed . | . . . Prevented . | . . . Kills | -11 -10 -10 ------- Run | Yrd Mat Min Combat Hostiles Destroyed 13 | . 13 . Guns 13 | . 13 . Classes Destroyed 7 | 2 5 . Tunneler 8 | 6 . 2 Recycler 1 | 1 . . Mechanic 1 | . 1 . Operator 1 | . 1 . Watcher 2 | . 2 . Swarmer 7 | . 7 . Grunt 6 | . 6 . Best Kill Streak 5 | 3 5 1 Combat Bots Only 4 | . 4 . Max Kills in Single Turn 2 | 1 2 1 Gunslinging 1 | . 1 . Exploded . | . . . Melee . | . . . Uniques/NPCs Destroyed . | . . . Combat | -11 -10 -10 -------- Run | Yrd Mat Min Hostile Shots Fired 82 | . 73 9 Missed 14 | . 14 . Damage Taken 1086 | . 593 493 Core 258 | . 104 154 Absorbed by Shields . | . . . Regen/Repaired (Parts) 55 | . 55 . Core Remaining (%) 100 | 100 . . Volleys Fired 82 | 18 55 9 Largest 2 | 2 2 2 Hottest 100 | 40 100 50 Shots Fired 159 | 36 106 17 Gun 154 | 36 104 14 Cannon . | . . . Launcher 3 | . . 3 Special 2 | . 2 . Kinetic 154 | 36 104 14 Thermal 2 | . 2 . Explosive 3 | . . 3 Electromagnetic . | . . . Robot Hit Streak 14 | 7 14 6 Robot Miss Streak 7 | 7 4 1 Penetration Max . | . . . Secondary Targets 3 | . 3 . Max Gunslinging Chain 1 | . 1 . Shots Hit Robots 93 | 19 65 9 Core Hits 41 | 8 27 6 Critical Kills . | . . . Critical Parts Destroyed 1 | . 1 . Critical Strikes 1 | . 1 . Destroy 1 | . 1 . Melee Attacks 3 | . 3 . Impact 3 | . 3 . Slashing . | . . . Piercing . | . . . Sneak Attacks . | . . . Combat Hostiles . | . . . Follow-up Attacks . | . . . Damage Inflicted 1185 | 236 765 184 Guns 1146 | 236 765 145 Cannons . | . . . Explosions 39 | . . 39 Melee . | . . . Ramming . | . . . Kinetic 1146 | 236 765 145 Thermal . | . . . Explosive 39 | . . 39 Electromagnetic . | . . . Impact . | . . . Slashing . | . . . Piercing . | . . . Highest Corruption 1 | . 1 1 Average Corruption 1 | . 1 1 Corruption Purged . | . . . Corruption Blocked . | . . . Effects 14 | . 11 3 Message Errors 4 | . 2 2 Matter Fused 5 | . 5 . Heat Flow Errors 2 | . 1 1 Parts Fused 1 | . 1 . Misfires 2 | . 2 . Overload Shots . | . . . Overflow Damage . | . . . Projectiles . | . . . Explosions . | . . . Melee . | . . . Knockbacks . | . . . Impact . | . . . Kinetic . | . . . Secondary . | . . . Self-Inflicted Damage . | . . . Shots . | . . . Rammed . | . . . Targets Rammed . | . . . Kicked . | . . . Crushed . | . . . Highest Temperature 143 | 6 143 134 Average Temperature 35 | 6 29 73 Received Heat Transfer 210 | . 210 . Siege Activations . | . . . Robots Corrupted . | . . . Combat Hostiles . | . . . Parts Fried . | . . . Impact Corruptions . | . . . Robots Melted . | . . . Combat Hostiles . | . . . Parts Melted . | . . . Heat Transferred . | . . . Parts Sabotaged . | . . . Parts Stolen . | . . . Parts Stripped . | . . . Power Chain Reactions . | . . . Alert | -11 -10 -10 ------- Run | Yrd Mat Min Peak Influence 190 | 35 190 47 Initial 33 | . 22 33 Average 55 | 15 66 37 Maximum Alert Level . | . . . Low Security (%) 100 | 100 100 100 Level 1 . | . . . Level 2 . | . . . Level 3 . | . . . Level 4 . | . . . Level 5 . | . . . High Security . | . . . Max Security . | . . . Squads Dispatched 1 | . 1 . Investigation . | . . . Extermination . | . . . Reinforcement 1 | . 1 . Assault . | . . . Garrison . | . . . Intercept . | . . . Searches Triggered . | . . . Construction Impeded . | . . . Haulers Reinforced . | . . . Active Scanning Responses . | . . . Cargo Convoy Interrupts . | . . . Stealth | -11 -10 -10 --------- Run | Yrd Mat Min Distress Signals 2 | . 2 . Communications Jammed . | . . . Distress Signals . | . . . Times Spotted 32 | . 30 2 Peak Tracking Total 5 | . 5 2 Tactical Retreats 5 | . 5 . Traps | -11 -10 -10 ------- Run | Yrd Mat Min Traps Triggered 1 | . 1 . Indirectly . | . . . Trap Hack Attempts . | . . . Triggered . | . . . Disarmed . | . . . Reprogrammed . | . . . Reused . | . . . Traps Extracted . | . . . Installed . | . . . Triggered . | . . . Machines | -11 -10 -10 ---------- Run | Yrd Mat Min Machines Disabled . | . . . Max in Single Turn . | . . . Machines Repaired . | . . . Machines Dismantled . | . . . Machines Sabotaged . | . . . Overloaded Fab Kills . | . . . Hacking | -11 -10 -10 --------- Run | Yrd Mat Min Machines Accessed 10 | . 9 1 Terminals 7 | . 7 . Fabricators . | . . . Repair Stations 1 | . 1 . Recycling Units 1 | . 1 . Scanalyzers . | . . . Garrison Access . | . . . Total Hacks 19 | . 18 1 Successful 12 | . 11 1 Failed 7 | . 7 . Catastrophic 2 | . 2 . Database Lockouts . | . . . Manual 11 | . 11 . Terminals 11 | . 11 . Fabricators . | . . . Repair Stations 4 | . 4 . Recycling Units 3 | . 3 . Scanalyzers . | . . . Garrison Access . | . . . Terminal Hacks 5 | . 4 1 Prototype ID Bank 1 | . 1 . Open Door 1 | . . 1 Branch Access Points 1 | . 1 . Hauler Manifests 1 | . 1 . Registered Components 1 | . 1 . Fabricator Hacks . | . . . Repair Station Hacks 2 | . 2 . Scan Component 1 | . 1 . Repair 1 | . 1 . Recycling Unit Hacks 2 | . 2 . Report Inventory 1 | . 1 . Retrieve Components 1 | . 1 . Scanalyzer . | . . . Garrison Access Hacks . | . . . Unauthorized Hacks 3 | . 3 . Terminals 2 | . 2 . Botnet 2 | . 2 . Fabricators . | . . . Repair Stations . | . . . Recycling Units 1 | . 1 . Monitor 1 | . 1 . Scanalyzers . | . . . Garrison Access . | . . . Data Cores Recovered . | . . . Used . | . . . Hacking Detections 6 | . 6 . Full Trace Events . | . . . Feedback Events . | . . . Feedback Blocked . | . . . Robot Schematics Acquired . | . . . Robots Built . | . . . Authchips . | . . . Time . | . . . Total Robot Build Rating . | . . . Part Schematics Acquired . | . . . Parts Built . | . . . Authchips . | . . . Time . | . . . Total Part Build Rating . | . . . Parts Repaired 1 | . 1 . Time 26 | . 26 . Parts Recycled . | . . . Recycled Matter . | . . . Retrieved Matter . | . . . Retrieved Components 2 | . 2 . Parts Scanalyzed . | . . . Part Schematics Acquired . | . . . Parts Damaged . | . . . Bothacking | -11 -10 -10 ------------ Run | Yrd Mat Min Used RIF Installer . | . . . Robots Hacked . | . . . Non-combat . | . . . Combat . | . . . Robot Hacks Applied . | . . . Relay Couplers Released . | . . . Fabnet Peak Effective % . | . . . Robots Rewired . | . . . Allies Hacked . | . . . Hacks Repelled . | . . . Allies | -11 -10 -10 -------- Run | Yrd Mat Min Total Allies . | . . . Largest Group . | . . . Highest-Rated Group . | . . . Highest-Rated Ally . | . . . Total Orders . | . . . Ally Attacks . | . . . Total Damage . | . . . Kills . | . . . Allies Corrupted . | . . . Allies Melted . | . . . Intel | -11 -10 -10 ------- Run | Yrd Mat Min Robot Analysis Total . | . . . Derelict Logs Recovered 1 | . . 1 Drone Launches . | . . . Drone Recoveries . | . . . Exploration | -11 -10 -10 ------------- Run | Yrd Mat Min Turns Passed 2080 | 233 1502 345 Spaces Moved 879 | 107 642 130 Core 6 | 6 . . Treads 873 | 101 642 130 Legs . | . . . Wheels . | . . . Hover . | . . . Flight . | . . . Fastest Speed 50 | 50 160 240 Average Speed 186 | 153 180 240 Slowest Speed 320 | 160 320 240 Overloaded Moves . | . . . Propulsion Burnouts . | . . . Robots Hopped . | . . . Cave-ins Triggered . | . . . Exploration Rate (%) 44 | 8 95 30 Regions Visited 2 Branch Regions 1 Pre-discovered Areas 1 | . . 1 Known Exits Taken 1 | . 1 . Unknown Exits Taken 1 | 1 . . Scrap Searched . | . . . Spaces Dug 4 | . 4 . Terrain Destroyed 23 | . 4 19 Melee 2 | . 2 . Projectile 2 | . 2 . AOE 19 | . . 19 Terrain Rammed . | . . . Walls Destroyed . | . . . Machines Disabled . | . . . Actions | -11 -10 -10 --------- Run | Yrd Mat Min Total 1165 | 136 883 146 Wait 132 | . 132 . Move 877 | 106 641 130 Hop . | . . . Pick Up 29 | 5 23 1 Fast Attach 10 | 7 3 . Attach 4 | . 3 1 Detach 1 | . . 1 Swap 12 | . 9 3 Drop 15 | . 14 1 Fire 82 | 18 55 9 Melee 3 | . 3 . Ram . | . . . Kick . | . . . Crush . | . . . Escape Stasis . | . . . Rewire . | . . . Trap . | . . . Miscellaneous . | . . . Route ------- -11/Scrapyard -10/Materials (discovered 4 exits: *Mat x3 / *Min) -10/Mines (discovered 2 exits: *Mat x2) History --------- Turn | Location | Event 5 | -11/Scrapyard | Discovered new exit (range 16) 234 | -11/Scrapyard | Entered Materials 311 | -10/Materials | Build established: Mutant 433 | -10/Materials | Repaired Lgt. Treads 577 | -10/Materials | Discovered new exit (range 12) 734 | -10/Materials | Discovered new exit (range 3) 987 | -10/Materials | Discovered new exit (range 8) 1271 | -10/Materials | Discovered new exit (range 14) 1358 | -10/Materials | Identified exit to Mines 1736 | -10/Materials | Entered Mines 1747 | -10/Mines | Found the Drone Emporium 1761 | -10/Mines | Found Prototype Device 1793 | -10/Mines | Discovered new exit (range 6) 1796 | -10/Mines | Learned Materials stockpile data 1821 | -10/Mines | Identified exit to Materials 1922 | -10/Mines | Discovered exit to Materials (range 7) 1925 | -10/Mines | Learned location of Storage (-8) 2064 | -10/Mines | Assembled infested the area 2069 | -10/Mines | Assisted by a Guerilla fighting off Assembled 2072 | -10/Mines | Core integrity fell below 50% 2078 | -10/Mines | Core integrity fell below 20% 2081 | -10/Mines | Destroyed by D-53 Grenadier with Mini Grenade Launcher Last Messages --------------- 02007_ R-06 Scavenger collects Lgt. Ion Engine. 02014_ K-01 Serf collects debris. 02044_ GJBJ8VWJPDEMA#8O E KUZRVA &OR01AUSLOA2N 02064_ ALERT: Infestation in the mines, dispatching Demolisher response squad. 02069_ A derelict emerges from the shadows: "You need to get out of here! I've been tracking a group of Assembled to figure out where they're coming from, and they're closing on this area, come on!" 02070_ Lgt. Nuclear Core destroyed. 02070_ X3-RXC(h): "I'll hold them off! Go on ahead or try to find another way!" 02073_ X3-RXC(h) destroyed. 02073_ R-06 Scavenger destroyed. 02075_ K-01 Serf collects debris. 02078_ The unstable cave ceiling collapses. 02078_ K-01 Serf collects debris. 02080_ The unstable cave ceiling collapses. 02081_ Lgt. Treads destroyed. Map ----- +----------------------------------------------------+ | ??????????????????????????????????????????????? | | ??????????????????????????????????????????????? | | ??????????????????????????????????????????????? | | ??????????????????????????????????????????????? | | ??????????????????????????????????????????????? | | ??????????????????????????????????????????????? | | ??????????????????????????????????????????????? | | ??????????????????????????????????????????????? | | ??????????????????????????????????????????????? | | ??????????????????????????????????????????????? | | ??????????????????????????????????????????????? | | ??????????????????????????????????????????????? | | ??????????????????????????????????????????????? | | ??????????????????????????????????????????????? | | ??????????????????????????????????????????????? | | ??????????????????????????????????????????????? | | ??????????????????????????????????????????????? | | ???????????????#####??????????????????????????? | | ???????????????? #?????????????????????????? | | ????????????????? #????????????????????????? | | ??????????????????# #######?????????????????? | | ???????????????????# ##????????????????? | | ??????????????????## ##???????????????? | | ?????????????????## #???????????????? | | ?????????????????# ##??????????????? | | ????????????????# k @ #????????####??? | | ????????????????# #??????## ##?? | | ????????????????# # ##???#### ##? | | ???????????????# ## ##### #? | | ??????????????# ##?# dd ## #? | | ?????????????# ????# # #?? | | ????????????# ?????### % # < #????? | | ????????????# ???????? # #?????? | | ???????????# ?????????# ### #?????? | | ???????????? ????# # # ##?# #?###?? | | ?????????????????## ## ##??# ## ##? | | ??????????????????########?? # #?### #? | | ????????????????????????????# ### #? | | ??????????????????########### ##### #? | | ?????????????????##""## ## ## ##? | | ?????????????????#" #X ## #### ##?? | | ?????????????????#" ## #### #??? | | ?????????????????#" ### ## #??? | | ?????????????????#"[ # #?## ##??? | | ?????????????????##""## #??# #???? | | ??????????????????#### #?## ##???? | | ?????????????????????############?# #????? | | ???????????????????????????????#### #????? | | ???????????????????????????????# ##????? | | ???????????????????????????????# #### ##?????? | +----------------------------------------------------+ Best States ------------- Heat Dissipation 25 Energy Generation 14 Energy Capacity 250 Matter Stores 300 Matter Capacity 300 Sight Range 16 Terrain Scan Density 10 Evasion (%) 40 Recoil Reduction 2 Item Schematics ----------------- None Robot Schematics ------------------ None Fabricated ------------ Nothing Alien Tech Used ----------------- None Achievements -------------- None Challenges ------------ None Game ------ Seed EfficiencyExpertDiverter Manual? 0 Play Time 00:23:10 Cumulative 144.5 hours Start 2025.05.04 @ 17:41:47 End 2025.05.04 @ 18:07:34 Sessions 1 Manual Loads 0 Difficulty Rogue Special Mode None Game No. 96 Rogue 96 Adventurer 0 Explorer 0 Win Type - Total 1 Types 1/0/0/0/0/0/0/0/0 Lore% 20 Gallery% 47 Achievement% 35 Wizard Run 0 Options --------- Layout 2 ASCII 0 Keyboard 0 Movement Mouse Keybinds 0 Fullscreen 1 Font 24/Smallcaps Map View 50x44 Zoom Use 0% Tactical HUD 1 Map Filters NONE Filters NONE Steam 1 RUN: e5d2172e-60c1-417b-8b76-f48578859aa4